bitfinex/quotes_SOLUSD_20220311
["timestamp","ask_amount","ask_price","bid_price","bid_amount"]
[1647018736930,18.5399,80.96,80.911,24.7692]
[1647018738031,6.176,80.966,80.911,24.7692]
[1647018738230,6.176,80.969,80.911,24.7692]
[1647018739032,6.176,80.969,80.92,18.5345]
[1647018739536,18.536,80.97,80.92,18.5345]
[1647018739936,18.536,80.97,80.921,24.6]
[1647018740440,123.5,80.969,80.921,24.6]
[1647018741139,18.5376,80.96,80.921,24.6]
[1647018741339,6.176,80.966,80.921,24.6]
[1647018741739,6.176,80.972,80.921,24.6]
[1647018743044,6.176,80.972,80.93,18.5321]
[1647018743239,6.176,80.984,80.93,18.5321]
[1647018743440,6.176,80.984,80.931,22.6389]
[1647018743639,123.5,80.997,80.931,22.6389]
[1647018743640,6.176,80.996,80.931,22.6389]
[1647018744039,2.80481428,80.995,80.931,22.6389]
[1647018744266,18.5305,80.99,80.931,22.6389]
[1647018744466,129.675,80.989,80.931,22.6389]
[1647018745064,6.175,80.989,80.931,22.6389]
[1647018745363,6.175,80.993,80.931,22.6389]
[1647018745566,6.175,80.994,80.941,49.00714851]
[1647018745763,14.42,80.99,80.941,49.00714851]
[1647018745968,6.175,80.989,80.941,49.00714851]
[1647018746364,6.175,80.989,80.942,24.9334]
[1647018747965,18.5303,80.99,80.942,24.9334]
[1647018748169,6.175,80.989,80.942,24.9334]
[1647018751171,129.675,80.989,80.942,24.9334]
[1647018751673,18.5325,80.98,80.942,24.9334]
[1647018751873,18.5325,80.98,80.93,18.5318]
[1647018752077,123.5,80.979,80.923,24.6902]
[1647018752274,98.6872,80.988,80.923,24.6902]
[1647018752275,123.5,80.977,80.923,24.6902]
[1647018752674,6.176,80.976,80.923,24.6902]
[1647018753474,0.56692574,80.969,80.923,24.6902]
[1647018754075,197.61,80.967,80.893,30.67869737]
[1647018754277,123.5,80.965,80.902,24.8029]
[1647018754475,18.5375,80.96,80.902,24.8029]
[1647018754676,18.5375,80.96,80.903,62.77324828]
[1647018755276,6.178,80.968,80.903,62.77324828]
[1647018755476,0.56692574,80.969,80.903,62.77324828]
[1647018755677,0.56692574,80.969,80.91,18.5368]
[1647018755880,23.9102,80.975,80.91,18.5368]
[1647018756077,23.9102,80.975,80.91,49.21549737]
[1647018756380,23.9102,80.975,80.91,72.45047469]
[1647018756976,18.5341,80.98,80.911,3.04447957]
[1647018757378,18.5341,80.98,80.92,18.533]
[1647018758081,3.12210137,80.979,80.92,18.533]
[1647018759081,18.5346,80.97,80.92,18.533]
[1647018761982,6.176,80.969,80.92,18.533]
[1647018764285,6.176,80.969,80.912,23.5917]
[1647018764488,18.5366,80.96,80.912,23.5917]
[1647018765486,18.5353,80.97,80.912,23.5917]
[1647018767285,18.5353,80.97,80.92,18.5347]
[1647018767686,27.54430137,80.979,80.92,18.5347]
[1647018768788,123.5,80.969,80.912,23.5917]
[1647018768987,197.61,80.967,80.912,23.5917]
[1647018769389,123.5,80.965,80.912,23.5917]
[1647018769588,123.5,80.963,80.912,23.5917]
[1647018769788,123.5,80.961,80.912,23.5917]
[1647018769992,123.5,80.959,80.912,23.5917]
[1647018770616,123.5,80.957,80.912,23.5917]
[1647018770921,18.5394,80.95,80.912,23.5917]
[1647018771118,6.176,80.956,80.912,23.5917]
[1647018771319,6.176,80.959,80.913,51.4534621]
[1647018771819,6.176,80.968,80.913,51.4534621]
[1647018772017,6.176,80.969,80.913,51.4534621]
[1647018772318,123.5,80.968,80.913,51.4534621]
[1647018772518,6.176,80.967,80.913,51.4534621]
[1647018772721,1.67772956,80.975,80.913,51.4534621]
[1647018772919,1.67772956,80.987,80.913,82.13215947]
[1647018773320,1.67772956,80.988,80.913,82.13215947]
[1647018773518,123.5,80.987,80.913,82.13215947]
[1647018774218,18.5325,80.98,80.92,18.5346]
[1647018775619,6.176,80.988,80.92,18.5346]
[1647018776019,6.176,80.989,80.92,18.5346]
[1647018776719,6.176,80.978,80.921,3.04447957]
[1647018776920,6.176,80.978,80.93,18.5305]
[1647018779340,3.12210137,80.979,80.93,18.5305]
[1647018781941,3.12210137,80.979,80.922,23.097]
[1647018782140,123.5,80.977,80.922,23.097]
[1647018782342,6.176,80.976,80.922,23.097]
[1647018783142,18.5349,80.97,80.922,23.097]
[1647018783344,6.176,80.978,80.922,23.097]
[1647018783946,3.12210137,80.979,80.93,18.5326]
[1647018787152,1.67772956,80.991,80.93,18.5326]
[1647018787350,29.7636,80.998,80.931,3.04447957]
[1647018787550,26.29165056,80.997,80.95,18.5262]
[1647018788153,2.69666144,80.996,80.95,18.5262]
[1647018788351,8.87066144,80.996,80.951,24.7938]
[1647018788551,26.29165056,80.995,80.96,18.5252]
[1647018788851,2.69666144,80.996,80.951,24.7938]
[1647018789859,6.174,80.995,80.951,24.7938]
[1647018790253,18.53,80.99,80.951,24.7938]
[1647018790454,6.175,80.989,80.951,24.7938]
[1647018791055,26.27953679,80.988,80.951,24.7938]
[1647018791254,6.175,80.987,80.951,24.7938]
[1647018792056,6.175,80.989,80.951,24.7938]
[1647018794164,18.5321,80.98,80.932,23.5291]
[1647018794366,18.5321,80.98,80.933,24.225]
[1647018795365,123.5,80.979,80.933,24.225]
[1647018795969,123.5,80.969,80.901,73.8639]
[1647018796167,197.61,80.967,80.902,24.225]
[1647018796370,22.7735,80.966,80.902,24.225]
[1647018796567,6.176,80.965,80.902,24.225]
[1647018796782,0.67507858,80.964,80.91,18.5371]
[1647018797588,6.177,80.986,80.911,3.04447957]
[1647018797785,23.9053,80.987,80.911,3.04447957]
[1647018797986,26.27909911,80.985,80.93,18.5325]
[1647018798184,6.176,80.984,80.931,23.774]
[1647018798585,18.532,80.98,80.931,23.774]
[1647018798784,9.28737572,80.979,80.931,23.774]
[1647018799386,3.11137572,80.979,80.931,23.774]
[1647018800486,6.176,80.978,80.931,23.774]
[1647018801086,18.5341,80.97,80.931,23.774]
[1647018801286,197.61,80.967,80.913,22.5738]
[1647018801687,123.5,80.965,80.913,22.5738]
[1647018802091,18.5426,80.96,80.913,22.5738]
[1647018802688,14.42,80.97,80.913,22.5738]
[1647018802689,6.176,80.959,80.913,22.5738]
[1647018802889,6.176,80.969,80.913,22.5738]
[1647018803388,123.5,80.967,80.913,22.5738]
[1647018803588,18.5375,80.96,80.913,22.5738]
[1647018803789,6.176,80.959,80.913,22.5738]
[1647018804195,123.5,80.958,80.913,22.5738]
[1647018804394,197.61,80.957,80.902,23.1917]
[1647018804596,123.5,80.949,80.902,23.1917]
[1647018804792,18.5392,80.95,80.902,23.1917]
[1647018805594,6.178,80.959,80.902,23.1917]
[1647018805792,18.5372,80.96,80.903,6.178]
[1647018806594,6.178,80.959,80.902,23.1917]
[1647018806796,18.539,80.95,80.902,23.1917]
[1647018808197,18.5374,80.96,80.902,23.1917]
[1647018808395,6.178,80.959,80.902,23.1917]
[1647018809197,18.5374,80.96,80.902,23.1917]
[1647018810797,6.178,80.968,80.91,18.5365]
[1647018810998,1.67772956,80.99,80.91,18.5365]
[1647018811200,1.67772956,80.993,80.91,18.5365]
[1647018811397,6.176,80.978,80.911,3.04447957]
[1647018811897,6.176,80.978,80.93,18.5295]
[1647018812100,6.176,80.978,80.931,24.0686]
[1647018813100,123.5,80.977,80.931,24.0686]
[1647018813304,6.176,80.976,80.931,24.0686]
[1647018814100,18.5343,80.97,80.931,24.0686]
[1647018814504,123.5,80.969,80.912,23.6311]
[1647018814702,197.61,80.967,80.912,23.6311]
[1647018814903,123.5,80.965,80.912,23.6311]
[1647018815301,123.5,80.963,80.912,23.6311]
[1647018815503,123.5,80.959,80.912,23.6311]
[1647018815903,18.5393,80.95,80.912,23.6311]
[1647018819909,129.678,80.957,80.883,24.8069]
[1647018819910,123.5,80.948,80.883,24.8069]
[1647018820111,18.541,80.94,80.884,24.7928]
[1647018820910,18.541,80.94,80.89,18.541]
[1647018821311,18.541,80.94,80.884,79.4435774]
[1647018821611,23.3884,80.956,80.884,79.4435774]
[1647018821810,23.3884,80.956,80.9,18.5392]
[1647018823432,6.178,80.955,80.898,24.7928]
[1647018823630,18.5386,80.95,80.898,24.7928]
[1647018823831,6.178,80.949,80.898,24.7928]
[1647018824834,6.178,80.949,80.9,18.5394]
[1647018825938,113.46385373,80.96,80.9,18.5394]
[1647018826938,131.99945373,80.96,80.9,18.5394]
[1647018829346,6.178,80.959,80.9,18.5394]
[1647018831245,18.5383,80.95,80.9,18.5394]
[1647018832044,23.912,80.958,80.9,18.5394]
[1647018834147,18.5381,80.95,80.9,18.5394]
[1647018834947,129.678,80.949,80.898,24.7928]
[1647018835148,18.5446,80.94,80.898,24.7928]
[1647018837953,129.678,80.949,80.898,24.7928]
[1647018838250,6.178,80.949,80.898,24.7928]
[1647018838450,6.178,80.949,80.9,18.5394]
[1647018838650,14.42,80.95,80.9,18.5394]
[1647018838853,6.178,80.957,80.9,18.5394]
[1647018839251,6.178,80.957,80.898,24.7928]
[1647018839452,129.678,80.957,80.898,24.7928]
[1647018840357,129.678,80.957,80.9,18.5394]
[1647018840958,6.178,80.957,80.9,18.5394]
[1647018841161,23.912,80.958,80.9,18.5394]
[1647018841559,123.5,80.957,80.9,18.5394]
[1647018841788,197.61,80.957,80.898,24.7928]
[1647018841993,123.5,80.955,80.898,24.7928]
[1647018842189,123.5,80.949,80.898,24.7928]
[1647018842391,123.5,80.947,80.898,24.7928]
[1647018842989,6.178,80.946,80.898,24.7928]
[1647018843788,123.5,80.947,80.898,24.7928]
[1647018843988,123.5,80.945,80.898,24.7928]
[1647018844192,123.5,80.943,80.898,24.7928]
[1647018844590,74.11,80.938,80.847,32.26405741]
[1647018844888,197.61,80.937,80.873,24.3053]
[1647018845391,123.5,80.929,80.873,24.3053]
[1647018846489,123.5,80.929,80.88,18.544]
[1647018846788,197.61,80.927,80.873,24.3053]
[1647018846991,123.5,80.925,80.873,24.3053]
[1647018847189,123.5,80.919,80.873,24.3053]
[1647018847589,14.42,80.92,80.873,24.3053]
[1647018848690,123.5,80.919,80.873,24.3053]
[1647018848990,14.42,80.92,80.873,24.3053]
[1647018849804,6.18,80.938,80.874,48.8505151]
[1647018850302,6.18,80.949,80.875,51.89499467]
[1647018850501,1.67772956,80.963,80.875,51.89499467]
[1647018850803,6.179,80.962,80.88,18.5439]
[1647018851006,6.178,80.965,80.88,18.5439]
[1647018851203,6.178,80.969,80.881,53.88612077]
[1647018851605,6.178,80.969,80.9,18.5347]
[1647018851802,123.5,80.966,80.901,23.972]
[1647018852003,74.11,80.967,80.901,23.972]
[1647018852004,123.5,80.964,80.901,23.972]
[1647018852206,123.5,80.959,80.901,23.972]
[1647018852405,123.5,80.957,80.901,23.972]
[1647018852604,6.178,80.956,80.901,23.972]
[1647018853004,123.5,80.955,80.901,23.972]
[1647018853203,123.5,80.949,80.901,23.972]
[1647018853403,123.5,80.947,80.901,23.972]
[1647018853607,6.178,80.946,80.901,23.972]
[1647018854205,123.5,80.945,80.901,23.972]
[1647018854409,123.5,80.943,80.901,23.972]
[1647018854604,6.178,80.942,80.901,23.972]
[1647018855105,22.5867,80.956,80.901,23.972]
[1647018855106,123.5,80.954,80.901,23.972]
[1647018855303,123.5,80.949,80.901,23.972]
[1647018855504,6.178,80.948,80.901,23.972]
[1647018855703,123.5,80.948,80.901,23.972]
[1647018855906,129.678,80.947,80.901,23.972]
[1647018857106,123.5,80.949,80.901,23.972]
[1647018859308,197.61,80.947,80.901,23.972]
[1647018859512,197.61,80.937,80.83,14.42]
[1647018859710,123.5,80.935,80.875,24.2527]
[1647018860116,123.5,80.935,80.875,10.95910637]
[1647018860321,123.5,80.929,80.859,24.2527]
[1647018860534,32.42964587,80.934,80.859,24.2527]
[1647018860535,74.11,80.907,80.859,24.2527]
[1647018860714,129.681,80.906,80.859,24.2527]
[1647018860913,123.5,80.899,80.859,24.2527]
[1647018861113,197.61,80.897,80.842,18.2086]
[1647018861318,197.61,80.897,80.843,24.2527]
[1647018861914,123.5,80.895,80.843,24.2527]
[1647018863317,6.182,80.899,80.843,24.2527]
[1647018863515,14.42,80.9,80.843,24.2527]
[1647018863717,14.42,80.9,80.844,64.1794704]
[1647018864918,14.42,80.9,80.85,18.5505]
[1647018865116,14.42,80.9,80.843,24.2527]
[1647018865518,74.11,80.891,80.843,24.2527]
[1647018865718,123.5,80.879,80.843,24.2527]
[1647018865918,14.42,80.88,80.843,24.2527]
[1647018867118,18.5554,80.89,80.843,24.2527]
[1647018867518,18.5554,80.89,80.844,47.65276799]
[1647018867722,23.669,80.899,80.843,24.2527]
[1647018868241,123.5,80.898,80.843,24.2527]
[1647018868640,6.182,80.897,80.843,24.2527]
[1647018869040,18.5543,80.89,80.843,24.2527]
[1647018869244,6.183,80.889,80.843,24.2527]
[1647018870244,6.183,80.889,80.799,18.5213]
[1647018870245,123.5,80.879,80.799,18.5213]
[1647018870443,123.5,80.877,80.818,24.7655]
[1647018870645,6.184,80.876,80.792,23.1406]
[1647018870844,24.8467,80.875,80.792,23.1406]
[1647018871048,129.684,80.874,80.792,23.1406]
[1647018871244,74.11,80.869,80.786,24.7655]
[1647018871446,197.61,80.859,80.786,24.7655]
[1647018871746,197.61,80.859,80.749,24.7655]
[1647018871942,197.61,80.857,80.749,24.7655]
[1647018872143,197.61,80.855,80.749,24.7655]
[1647018872342,6.187,80.856,80.749,24.7655]
[1647018872343,197.61,80.849,80.749,24.7655]
[1647018872545,197.61,80.847,80.749,24.7655]
[1647018872743,197.61,80.839,80.749,24.7655]
[1647018873044,197.61,80.837,80.749,24.7655]
[1647018873245,197.61,80.835,80.749,24.7655]
[1647018873544,197.61,80.819,80.749,24.7655]
[1647018873744,123.5,80.809,80.749,24.7655]
[1647018874644,14.42,80.81,80.749,24.7655]
[1647018875144,14.42,80.81,80.749,67.90376324]
[1647018875345,24.6955,80.845,80.749,67.90376324]
[1647018875548,123.5,80.844,80.75,55.9025886]
[1647018875751,123.5,80.839,80.75,52.85810903]
[1647018876252,123.5,80.837,80.75,52.85810903]
[1647018876756,14.42,80.84,80.75,52.85810903]
[1647018877059,123.5,80.839,80.75,52.85810903]
[1647018877260,14.42,80.84,80.75,52.85810903]
[1647018877261,123.5,80.837,80.771,62.18982037]
[1647018877456,6.187,80.836,80.772,22.8394]
[1647018877855,123.5,80.835,80.772,22.8394]
[1647018878061,123.5,80.829,80.772,22.8394]
[1647018878460,123.5,80.827,80.772,22.8394]
[1647018878658,123.5,80.825,80.772,22.8394]
[1647018879761,123.5,80.823,80.772,22.8394]
[1647018879962,14.42,80.82,80.772,22.8394]
[1647018883568,123.5,80.818,80.772,22.8394]
[1647018883768,203.798,80.817,80.772,22.8394]
[1647018884968,6.188,80.817,80.772,22.8394]
[1647018885168,6.188,80.819,80.772,22.8394]
[1647018885568,123.5,80.818,80.772,22.8394]
[1647018885768,6.188,80.817,80.772,22.8394]
[1647018887007,129.688,80.818,80.772,22.8394]
[1647018889303,74.11,80.817,80.772,22.8394]
[1647018889604,129.688,80.816,80.772,22.8394]
[1647018891003,129.688,80.816,80.751,23.1121]
[1647018891202,23.639,80.815,80.751,23.1121]
[1647018891407,14.42,80.81,80.751,23.1121]
[1647018891605,6.189,80.809,80.752,57.31382228]
[1647018892803,14.42,80.81,80.752,57.31382228]
[1647018893204,6.189,80.829,80.752,57.31382228]
[1647018893606,14.42,80.83,80.78,18.5658]
[1647018893805,14.42,80.83,80.781,59.19670368]
[1647018895007,14.42,80.83,80.77,18.5685]
[1647018895213,14.42,80.83,80.76,18.9987]
[1647018896009,6.188,80.859,80.81,18.5593]
[1647018896208,22.666,80.86,80.81,18.5593]
[1647018896609,22.666,80.86,80.762,123.5]
[1647018896811,197.61,80.858,80.761,53.83692415]
[1647018897009,22.666,80.86,80.761,53.83692415]
[1647018897010,123.5,80.856,80.761,50.79244458]
[1647018897212,123.5,80.854,80.763,3.04447957]
[1647018897510,123.5,80.854,80.764,55.46899775]
[1647018897713,123.5,80.849,80.764,55.46899775]
[1647018897909,123.5,80.849,80.765,3.04447957]
[1647018898109,129.687,80.848,80.79,18.5634]
[1647018898311,129.687,80.848,80.791,24.5979]
[1647018899011,6.187,80.848,80.791,24.5979]
[1647018899212,14.42,80.85,80.791,24.5979]
[1647018899411,14.42,80.85,80.8,18.5616]
[1647018899611,14.42,80.85,80.801,72.06968588]
[1647018901614,6.186,80.869,80.81,18.5598]
[1647018901813,24.6145,80.877,80.81,18.5598]
[1647018902014,24.6145,80.877,80.811,24.9143]
[1647018902217,6.184,80.876,80.811,24.9143]
[1647018902616,6.184,80.876,80.82,18.556]
[1647018902820,6.184,80.879,80.822,49.74894704]
[1647018904218,6.184,80.879,80.83,18.5546]
[1647018905621,6.183,80.898,80.83,18.5546]
[1647018905822,6.183,80.899,80.831,22.5376]
[1647018906422,123.5,80.898,80.841,57.27137804]
[1647018906622,6.182,80.897,80.842,22.5376]
[1647018907023,6.182,80.899,80.842,22.5376]
[1647018907726,6.182,80.899,80.85,18.5503]
[1647018907929,6.182,80.916,80.85,18.5503]
[1647018908926,6.181,80.919,80.85,18.5503]
[1647018909329,6.181,80.929,80.85,18.5503]
[1647018909727,123.5,80.928,80.85,18.5503]
[1647018909928,6.181,80.927,80.85,18.5503]
[1647018910830,123.5,80.928,80.85,18.5503]
[1647018911029,123.5,80.926,80.85,18.5503]
[1647018911833,123.5,80.919,80.85,18.5503]
[1647018912034,197.61,80.918,80.85,18.5503]
[1647018912434,123.5,80.912,80.843,24.3328]
[1647018912636,6.181,80.917,80.843,24.3328]
[1647018912637,123.5,80.896,80.843,24.3328]
[1647018912835,123.5,80.889,80.843,24.3328]
[1647018914052,197.61,80.887,80.83,18.5535]
[1647018914252,197.61,80.879,80.831,6.183]
[1647018914455,197.61,80.869,80.787,18.4403]
[1647018914652,197.61,80.867,80.789,48.6745]
[1647018914853,14.42,80.86,80.789,48.6745]
[1647018915053,14.42,80.86,80.79,6.186]
[1647018915252,32.9855,80.86,80.791,53.0391654]
[1647018915452,123.5,80.859,80.792,6.186]
[1647018915652,6.186,80.858,80.791,53.0391654]
[1647018915857,6.186,80.859,80.791,53.0391654]
[1647018916051,14.42,80.86,80.792,6.186]
[1647018916452,32.982,80.86,80.792,6.186]
[1647018916654,14.42,80.86,80.792,6.186]
[1647018916852,14.42,80.86,80.793,23.23497732]
[1647018917053,14.42,80.86,80.794,6.186]
[1647018917656,14.42,80.86,80.81,18.5594]
[1647018917954,14.42,80.86,80.811,63.91189786]
[1647018919660,123.5,80.859,80.811,63.91189786]
[1647018919859,123.5,80.859,80.801,6.184]
[1647018920058,123.5,80.859,80.79,6.184]
[1647018920864,32.9819,80.86,80.8,18.5608]
[1647018921058,14.42,80.86,80.792,6.184]
[1647018921359,14.42,80.86,80.792,17.80148866]
[1647018921558,14.42,80.86,80.792,9.22847957]
[1647018922056,32.9815,80.86,80.8,18.5607]
[1647018922458,14.42,80.86,80.792,9.22847957]
[1647018924160,14.42,80.86,80.81,18.5596]
[1647018924359,14.42,80.86,80.811,52.42415189]
[1647018926363,123.5,80.859,80.8,18.5619]
[1647018926563,123.5,80.859,80.801,6.184]
[1647018926964,32.9819,80.86,80.801,6.184]
[1647018927166,14.42,80.86,80.802,61.78405944]
[1647018927364,14.42,80.86,80.803,6.184]
[1647018927566,14.42,80.86,80.81,18.5597]
[1647018928567,123.5,80.859,80.81,18.5597]
[1647018928768,32.9812,80.86,80.804,22.7033]
[1647018928968,123.5,80.859,80.804,22.7033]
[1647018929167,32.9812,80.86,80.804,22.7033]
[1647018929379,14.42,80.86,80.804,22.7033]
[1647018930470,14.42,80.86,80.81,18.5601]
[1647018931870,14.42,80.86,80.804,22.7033]
[1647018932073,123.5,80.859,80.804,22.7033]
[1647018932271,129.684,80.858,80.804,22.7033]
[1647018932470,197.61,80.849,80.793,6.184]
[1647018932674,197.61,80.839,80.793,6.184]
[1647018932971,123.5,80.829,80.793,6.184]
[1647018933173,123.5,80.829,80.774,22.6094]
[1647018935171,18.5701,80.82,80.774,22.6094]
[1647018936873,18.5701,80.82,80.73,61.9061]
[1647018936874,197.61,80.817,80.745,6.188]
[1647018937073,197.61,80.817,80.75,24.0321]
[1647018937272,123.5,80.809,80.75,24.0321]
[1647018937775,129.689,80.808,80.75,24.0321]
[1647018938275,129.689,80.808,80.75,42.6057]
[1647018939775,18.5751,80.8,80.75,42.6057]
[1647018940176,18.5751,80.8,80.75,24.0321]
[1647018940378,6.19,80.799,80.75,24.0321]
[1647018940677,129.69,80.808,80.75,24.0321]
[1647018941081,18.5754,80.8,80.75,24.0321]
[1647018941277,6.19,80.799,80.75,24.0321]
[1647018941680,14.42,80.8,80.75,24.0321]
[1647018941886,6.19,80.799,80.75,24.0321]
[1647018942284,6.19,80.799,80.751,49.99588469]
[1647018943282,6.19,80.799,80.75,24.0321]
[1647018943483,18.5775,80.79,80.75,24.0321]
[1647018944581,6.19,80.799,80.75,24.0321]
[1647018945385,123.5,80.798,80.75,24.0321]
[1647018945684,6.19,80.797,80.75,24.0321]
[1647018946585,129.69,80.798,80.75,24.0321]
[1647018946809,129.69,80.798,80.745,6.188]
[1647018946810,18.5772,80.79,80.745,6.188]
[1647018947007,6.19,80.789,80.745,6.188]
[1647018947408,14.42,80.79,80.745,6.188]
[1647018948210,32.9982,80.79,80.745,6.188]
[1647018949210,14.42,80.79,80.745,6.188]
[1647018950410,6.19,80.789,80.745,6.188]
[1647018952910,18.5795,80.78,80.745,6.188]
[1647018953111,123.5,80.779,80.745,6.188]
[1647018953310,18.5795,80.78,80.745,6.188]
[1647018954521,123.5,80.779,80.745,6.188]
[1647018954817,123.5,80.779,80.715,23.9789]
[1647018954818,18.5814,80.77,80.715,23.9789]
[1647018955019,123.5,80.769,80.716,23.2251]
[1647018956016,33.0014,80.77,80.716,23.2251]
[1647018956218,123.5,80.769,80.716,23.2251]
[1647018956618,18.5838,80.76,80.716,23.2251]
[1647018957826,23.7238,80.76,80.716,23.2251]
[1647018958423,5.14,80.76,80.7,6.44799676]
[1647018958620,123.5,80.757,80.7,6.44799676]
[1647018958820,6.192,80.759,80.7,6.44799676]
[1647018958821,74.11,80.748,80.7,6.44799676]
[1647018959022,9.23647957,80.759,80.685,22.6155]
[1647018959023,203.802,80.747,80.685,22.6155]
[1647018959221,203.802,80.747,80.672,103.6306]
[1647018959222,197.61,80.739,80.672,24.293]
[1647018959423,197.61,80.729,80.672,24.293]
[1647018959822,123.5,80.719,80.672,24.293]
[1647018960024,3.03219997,80.718,80.672,24.293]
[1647018960424,3.03219997,80.718,80.677,23.23497732]
[1647018960624,14.42,80.74,80.677,23.23497732]
[1647018960824,6.192,80.739,80.678,22.6155]
[1647018961025,129.692,80.739,80.678,22.6155]
[1647018961434,123.5,80.729,80.642,6.192]
[1647018961629,123.5,80.719,80.709,0.00442561]
[1647018961826,197.61,80.717,80.643,24.0885]
[1647018962027,123.5,80.715,80.643,24.0885]
[1647018962425,19.0850535,80.716,80.643,24.0885]
[1647018962426,18.6028,80.7,80.643,24.0885]
[1647018962625,14.42,80.71,80.643,24.0885]
[1647018963027,14.42,80.71,80.644,6.197]
[1647018963427,14.42,80.71,80.65,18.5964]
[1647018963629,14.42,80.71,80.651,71.13160933]
[1647018964429,14.42,80.71,80.66,18.5942]
[1647018964629,14.42,80.71,80.651,71.13160933]
[1647018965236,14.42,80.71,80.652,26.19454458]
[1647018965430,6.197,80.746,80.66,18.5942]
[1647018965630,14.42,80.74,80.661,6.195]
[1647018965832,6.195,80.737,80.661,55.6245219]
[1647018966235,6.195,80.737,80.67,61.9434]
[1647018966432,6.195,80.737,80.68,18.5831]
[1647018966630,6.195,80.737,80.681,24.1202]
[1647018967632,6.195,80.739,80.69,18.587]
[1647018967932,12.8859514,80.754,80.691,67.39623002]
[1647018968131,6.194,80.762,80.691,67.39623002]
[1647018968132,6.194,80.762,80.692,24.4026]
[1647018968332,23.2235,80.766,80.693,6.192]
[1647018968533,400.0,80.737,80.7,18.5834]
[1647018968732,400.0,80.737,80.701,6.194]
[1647018968933,400.0,80.737,80.695,6.194]
[1647018969531,400.0,80.737,80.71,18.5766]
[1647018969736,400.0,80.737,80.711,65.46278417]
[1647018970633,120.89440098,80.737,80.72,18.5781]
[1647018970833,100.59853189,80.737,80.72,18.5781]
[1647018971034,57.4332089,80.791,80.721,120.0]
[1647018971236,6.192,80.799,80.722,30.5437]
[1647018971433,6.191,80.809,80.722,30.5437]
[1647018971635,6.191,80.809,80.74,18.5745]
[1647018971839,6.19,80.816,80.741,24.3527]
[1647018972234,55.15833744,80.815,80.742,32.28053753]
[1647018972435,6.189,80.814,80.742,32.28053753]
[1647018972634,55.15833744,80.815,80.742,32.28053753]
[1647018973264,55.15833744,80.815,80.76,18.5709]
[1647018973464,55.15833744,80.815,80.742,32.28053753]
[1647018973465,6.189,80.814,80.761,64.0246789]
[1647018973865,3.04447957,80.826,80.761,64.0246789]
[1647018974065,25.98344393,80.842,80.762,6.188]
[1647018974372,6.188,80.844,80.81,18.5587]
[1647018974565,6.186,80.859,80.81,18.5587]
[1647018974767,6.186,80.859,80.791,22.8102]
[1647018974966,58.86158338,80.858,80.792,33.7186428]
[1647018975166,6.186,80.857,80.792,33.7186428]
[1647018976166,58.86158338,80.858,80.792,33.7186428]